Cogmind - Beta 13 @@@ ROGUE MODE // 2024.04.01 @ 16:12:47 Player: MPD78 Result: Destroyed by L-41 Fighter with Axe Performance ------------- Evolutions (3) 1500 Regions Visited (8) 1600 Robots Destroyed (20) 100 Value Destroyed (500) 500 Prototype IDs (2) 40 Alien Tech Used (0) 0 Bonus (-160) -160 TOTAL SCORE: 3580 Bonus ------- Friendly Fire -160 Cogmind --------- Core Integrity 0/700 Matter 50/300 Energy 72/100 System Corruption 27% Temperature Cool (96) Movement Core (50) Location -7/Storage Parts ------- > --- POWER (1) -------- (None) > --- PROPULSION (2) --- (None) > --- UTILITY (4) ------ Transmission Jammer > --- WEAPON (6) ------- (None) > --- INVENTORY (5) ---- Heavy Deuterium Engine Enhanced Nuclear Core Light Treads VSS Leg VSS Leg Peak State ------------ > --- POWER ------------ (None) > --- PROPULSION ------- VSS Leg VSS Leg > --- UTILITY ---------- Small Storage Unit Advanced ECM Suite Core Shielding Core Shielding > --- WEAPON ----------- Medium Laser Particle Gun Particle Gun Light Assault Rifle Mini Grenade Launcher Mini Grenade Launcher > --- INVENTORY -------- Light Treads Aluminum Leg Aluminum Leg [Rating: 23] Favorites ----------- Power Light Ion Engine Engine Light Ion Engine Propulsion Light Treads Treads Light Treads Leg VSS Leg Utility Core Shielding Device Advanced ECM Suite Storage Small Storage Unit Processor Experimental Terrain Scan Processor Protection Core Shielding Weapon Light Assault Rifle Energy Gun Particle Gun Energy Cannon Long-range Proton Cannon Ballistic Gun Light Assault Rifle Launcher Mini Grenade Launcher Build | -11 -10 -10 -9 -8 -7 -7 -7 -7 ------- Run | Yrd Mat Min Mat Mat Fac Was Fac Sto Slots Evolved 6 | . . . 2 2 2 . . . Power . | . . . . . . . . . Propulsion . | . . . . . . . . . Utility 2 | . . . . . 2 . . . Weapon 4 | . . . 2 2 . . . . Parts Attached 25 | 6 1 . 2 2 6 5 . 3 Power 2 | 1 . . . . . . . 1 Engine 2 | 1 . . . . . . . 1 Core . | . . . . . . . . . Reactor . | . . . . . . . . . Propulsion 6 | 2 . . . . 2 2 . . Treads 2 | 2 . . . . . . . . Leg 4 | . . . . . 2 2 . . Wheel . | . . . . . . . . . Hover . | . . . . . . . . . Flight . | . . . . . . . . . Utility 9 | 1 1 . . . 3 2 . 2 Device 4 | . . . . . 2 . . 2 Storage 1 | 1 . . . . . . . . Processor 1 | . . . . . . 1 . . Hackware . | . . . . . . . . . Protection 3 | . 1 . . . 1 1 . . Artifact . | . . . . . . . . . Weapon 8 | 2 . . 2 2 1 1 . . Energy Gun 3 | . . . 2 . 1 . . . Energy Cannon 1 | . . . . . . 1 . . Ballistic Gun 2 | 2 . . . . . . . . Ballistic Cannon . | . . . . . . . . . Launcher 2 | . . . . 2 . . . . Special Weapon . | . . . . . . . . . Impact Weapon . | . . . . . . . . . Slashing Weapon . | . . . . . . . . . Piercing Weapon . | . . . . . . . . . Special Melee Weapon . | . . . . . . . . . Unidentified Prototypes 2 | . . . . . . 1 . 1 Corrupted Parts 1 | . . . . . . 1 . . System Corruption 7 | . . . . . . 7 . . Parts Lost 13 | . . . . . 3 8 1 1 Power 1 | . . . . . 1 . . . Propulsion 2 | . . . . . 1 1 . . Utility 3 | . . . . . . 1 1 1 Weapon 7 | . . . . . 1 6 . . Highest Loss Streak 6 | . . . . . 3 6 1 1 To Critical Strikes 1 | . . . . . . 1 . . Average Slot Usage (%) 83 | . 96 100 96 90 91 31 15 15 Engine 8 | . 14 14 11 9 4 . . 6 Treads 16 | . 28 28 22 18 10 . . . Leg 1 | . . . . . 3 3 . . Device 1 | . . . . . 1 3 . 2 Storage 8 | . 14 14 11 9 7 1 . . Protection 12 | . 10 14 11 9 14 9 7 5 Energy Gun 11 | . . . 18 18 17 4 . . Ballistic Gun 16 | . 28 28 22 18 12 1 . . Launcher 5 | . . . . 9 15 5 . . Naked Turns 30 | . . . . . . 29 . 1 Heaviest Build 27 | 10 11 11 17 19 21 27 2 14 Greatest Support 40 | 40 40 40 40 40 40 20 3 3 Greatest Overweight (x) 6 | 3 . . . . 6 6 . 4 Average Overweight (x) . | . . . . . . . . 2 Largest Inventory Capacity 8 | 8 8 8 8 8 8 8 5 5 Average Capacity 7 | 7 8 8 8 8 8 5 5 5 Most Carried 8 | 3 4 4 8 6 4 4 3 5 Average Carried 4 | 1 3 4 6 5 3 3 3 4 Final Capacity 8 | 8 8 8 8 8 8 5 5 5 Final Carried 6 | 3 4 4 6 4 3 3 3 5 Class Distribution -------------------- 41% | Mutant 33% | Executioner 24% | Tank Dominant Class ---------------- Mutant | -10/Materials Mutant | -10/Mines Tank | -9/Materials Executioner | -8/Materials Executioner | -7/Factory Mutant | -7/Waste Mutant | -7/Factory Mutant | -7/Storage Resources | -11 -10 -10 -9 -8 -7 -7 -7 -7 ----------- Run | Yrd Mat Min Mat Mat Fac Was Fac Sto Matter Collected 440 | 210 60 16 42 10 102 . . . Remotely . | . . . . . . . . . Salvage Created 449 | . . 45 249 . 155 . . . Parts 33 | . . 6 16 . 11 . . . Haulers Intercepted . | . . . . . . . . . Recyclers Shooed . | . . . . . . . . . Parts Field Recycled . | . . . . . . . . . Retrieved Matter . | . . . . . . . . . Parts Self-Destructed . | . . . . . . . . . Prevented . | . . . . . . . . . Kills | -11 -10 -10 -9 -8 -7 -7 -7 -7 ------- Run | Yrd Mat Min Mat Mat Fac Was Fac Sto Combat Hostiles Destroyed 16 | . . 3 7 . 6 . . . Guns 12 | . . 3 7 . 2 . . . AOE 4 | . . . . . 4 . . . Classes Destroyed 6 | . . 1 4 . 1 . . . Worker 1 | . . . 1 . . . . . Watcher 3 | . . . 1 . 2 . . . Swarmer 11 | . . 3 4 . 4 . . . Grunt 2 | . . . 2 . . . . . Sentry 2 | . . . 1 . 1 . . . Hunter 1 | . . . . . 1 . . . Best Kill Streak 5 | . . 3 4 . 5 . . . Combat Bots Only 4 | . . 3 4 . 4 . . . Max Kills in Single Turn 3 | . . 1 2 . 3 . . . Gunslinging . | . . . . . . . . . Exploded 3 | . . . . . 3 . . . Melee . | . . . . . . . . . Uniques/NPCs Destroyed . | . . . . . . . . . Combat | -11 -10 -10 -9 -8 -7 -7 -7 -7 -------- Run | Yrd Mat Min Mat Mat Fac Was Fac Sto Hostile Shots Fired 177 | . . 23 29 . 52 6 33 34 Missed 68 | . . 5 7 . 24 1 20 11 Damage Taken 1825 | . . 146 242 . 410 367 125 535 Core 778 | . . 22 44 . 30 186 81 415 Absorbed by Shields . | . . . . . . . . . Redirected to Shielding 118 | . . 4 8 . 6 29 26 45 Core Remaining (%) 95 | 100 . 91 89 100 . . . . Volleys Fired 45 | . . 8 16 2 13 6 . . Largest 6 | . . 2 4 4 6 6 . . Hottest 260 | . . 40 170 170 260 260 . . Shots Fired 153 | . . 16 54 8 59 16 . . Gun 133 | . . 16 54 8 47 8 . . Cannon . | . . . . . . . . . Launcher 20 | . . . . . 12 8 . . Special . | . . . . . . . . . Kinetic 73 | . . 16 32 4 19 2 . . Thermal 60 | . . . 22 4 28 6 . . Explosive 20 | . . . . . 12 8 . . Electromagnetic . | . . . . . . . . . Robot Hit Streak 13 | . . 2 5 1 5 13 . . Robot Miss Streak 8 | . . 4 2 3 8 3 . . Penetration Max . | . . . . . . . . . Secondary Targets 2 | . . 2 . . . . . . Max Gunslinging Chain 1 | . . 1 . . . . . . Shots Hit Robots 72 | . . 7 28 2 22 13 . . Core Hits 48 | . . 5 17 . 23 2 1 . Critical Kills . | . . . . . . . . . Critical Parts Destroyed . | . . . . . . . . . Critical Strikes . | . . . . . . . . . Melee Attacks . | . . . . . . . . . Impact . | . . . . . . . . . Slashing . | . . . . . . . . . Piercing . | . . . . . . . . . Sneak Attacks . | . . . . . . . . . Combat Hostiles . | . . . . . . . . . Follow-up Attacks . | . . . . . . . . . Damage Inflicted 2122 | . . 62 337 28 773 917 5 . Guns 777 | . . 62 337 28 262 88 . . Cannons . | . . . . . . . . . Explosions 1337 | . . . . . 508 829 . . Melee . | . . . . . . . . . Ramming 8 | . . . . . 3 . 5 . Kinetic 305 | . . 62 159 10 58 16 . . Thermal 472 | . . . 178 18 204 72 . . Explosive 1337 | . . . . . 508 829 . . Electromagnetic . | . . . . . . . . . Impact . | . . . . . . . . . Slashing . | . . . . . . . . . Piercing . | . . . . . . . . . Highest Corruption 27 | . . . . . . 24 25 27 Average Corruption 18 | . . . . . . 11 24 25 Corruption Purged . | . . . . . . . . . Corruption Blocked . | . . . . . . . . . Effects 15 | . . . . . . 6 2 7 Message Errors 4 | . . . . . . 3 1 . Matter Fused 3 | . . . . . . 1 . 2 Heat Flow Errors 1 | . . . . . . . . 1 Energy Discharges 1 | . . . . . . . 1 . Parts Fused 1 | . . . . . . . . 1 Data Loss (minor) 1 | . . . . . . 1 . . Data Loss (major) 2 | . . . . . . 1 . 1 Misdirections 2 | . . . . . . . . 2 Overload Shots . | . . . . . . . . . Overflow Damage 57 | . . . . . 42 15 . . Projectiles . | . . . . . . . . . Explosions 57 | . . . . . 42 15 . . Melee . | . . . . . . . . . Knockbacks . | . . . . . . . . . Impact . | . . . . . . . . . Kinetic . | . . . . . . . . . Secondary . | . . . . . . . . . Self-Inflicted Damage 226 | . . . . . 109 115 2 . Shots 9 | . . . . . 4 5 . . Rammed 2 | . . . . . 1 . 1 . Targets Rammed 2 | . . . . . 1 . 1 . Kicked . | . . . . . . . . . Crushed . | . . . . . . . . . Highest Temperature 424 | . . . 424 180 400 278 . 230 Average Temperature 152 | . . . 157 92 157 144 . 169 Received Heat Transfer 237 | . . . 57 . 48 . 24 108 Effects 2 | . . . 2 . . . . . Shutdowns 1 | . . . 1 . . . . . Energy Bleed 1 | . . . 1 . . . . . Siege Activations . | . . . . . . . . . Robots Corrupted . | . . . . . . . . . Combat Hostiles . | . . . . . . . . . Parts Fried . | . . . . . . . . . Impact Corruptions . | . . . . . . . . . Robots Melted . | . . . . . . . . . Combat Hostiles . | . . . . . . . . . Parts Melted 1 | . . . . . 1 . . . Heat Transferred 1147 | . . . 407 37 518 185 . . Parts Sabotaged . | . . . . . . . . . Parts Stolen . | . . . . . . . . . Parts Stripped . | . . . . . . . . . Power Chain Reactions . | . . . . . . . . . Alert | -11 -10 -10 -9 -8 -7 -7 -7 -7 ------- Run | Yrd Mat Min Mat Mat Fac Was Fac Sto Peak Influence 198 | . . 70 189 20 198 75 55 35 Initial 69 | . . . 27 20 9 69 25 20 Average 49 | . . 25 85 20 67 25 34 19 Maximum Alert Level . | . . . . . . . . . Low Security (%) 100 | 100 100 100 100 100 100 100 100 100 Level 1 . | . . . . . . . . . Level 2 . | . . . . . . . . . Level 3 . | . . . . . . . . . Level 4 . | . . . . . . . . . Level 5 . | . . . . . . . . . High Security . | . . . . . . . . . Max Security . | . . . . . . . . . Squads Dispatched 4 | . . . . 1 1 . . 2 Investigation 1 | . . . . 1 . . . . Extermination . | . . . . . . . . . Reinforcement 1 | . . . . . 1 . . . Assault 2 | . . . . . . . . 2 Garrison . | . . . . . . . . . Intercept . | . . . . . . . . . Searches Triggered . | . . . . . . . . . Construction Impeded . | . . . . . . . . . Haulers Reinforced . | . . . . . . . . . Active Scanning Responses . | . . . . . . . . . Cargo Convoy Interrupts . | . . . . . . . . . Stealth | -11 -10 -10 -9 -8 -7 -7 -7 -7 --------- Run | Yrd Mat Min Mat Mat Fac Was Fac Sto Distress Signals 2 | . . . 1 . . . . 1 Communications Jammed 21 | . . . . . . . . 21 Distress Signals 21 | . . . . . . . . 21 Times Spotted 49 | . . 3 10 1 12 6 2 15 Peak Tracking Total 13 | . . 3 3 1 4 6 2 13 Tactical Retreats 1 | . . . . . . . . 1 Traps | -11 -10 -10 -9 -8 -7 -7 -7 -7 ------- Run | Yrd Mat Min Mat Mat Fac Was Fac Sto Traps Triggered 3 | . . . 1 1 1 . . . Indirectly . | . . . . . . . . . Trap Hack Attempts . | . . . . . . . . . Triggered . | . . . . . . . . . Disarmed . | . . . . . . . . . Reprogrammed . | . . . . . . . . . Reused . | . . . . . . . . . Traps Extracted . | . . . . . . . . . Installed . | . . . . . . . . . Triggered . | . . . . . . . . . Machines | -11 -10 -10 -9 -8 -7 -7 -7 -7 ---------- Run | Yrd Mat Min Mat Mat Fac Was Fac Sto Machines Disabled 2 | . . . . . 2 . . . Max in Single Turn 1 | . . . . . 1 . . . Machines Repaired . | . . . . . . . . . Machines Dismantled . | . . . . . . . . . Machines Sabotaged . | . . . . . . . . . Overloaded Fab Kills . | . . . . . . . . . Hacking | -11 -10 -10 -9 -8 -7 -7 -7 -7 --------- Run | Yrd Mat Min Mat Mat Fac Was Fac Sto Machines Accessed . | . . . . . . . . . Terminals . | . . . . . . . . . Fabricators . | . . . . . . . . . Repair Stations . | . . . . . . . . . Recycling Units . | . . . . . . . . . Scanalyzers . | . . . . . . . . . Garrison Access . | . . . . . . . . . Total Hacks . | . . . . . . . . . Successful . | . . . . . . . . . Failed . | . . . . . . . . . Catastrophic . | . . . . . . . . . Database Lockouts . | . . . . . . . . . Manual . | . . . . . . . . . Terminals . | . . . . . . . . . Fabricators . | . . . . . . . . . Repair Stations . | . . . . . . . . . Recycling Units . | . . . . . . . . . Scanalyzers . | . . . . . . . . . Garrison Access . | . . . . . . . . . Terminal Hacks . | . . . . . . . . . Fabricator Hacks . | . . . . . . . . . Repair Station Hacks . | . . . . . . . . . Recycling Unit Hacks . | . . . . . . . . . Scanalyzer . | . . . . . . . . . Garrison Access Hacks . | . . . . . . . . . Unauthorized Hacks . | . . . . . . . . . Terminals . | . . . . . . . . . Fabricators . | . . . . . . . . . Repair Stations . | . . . . . . . . . Recycling Units . | . . . . . . . . . Scanalyzers . | . . . . . . . . . Garrison Access . | . . . . . . . . . Data Cores Recovered . | . . . . . . . . . Used . | . . . . . . . . . Hacking Detections . | . . . . . . . . . Full Trace Events . | . . . . . . . . . Feedback Events . | . . . . . . . . . Feedback Blocked . | . . . . . . . . . Robot Schematics Acquired . | . . . . . . . . . Robots Built . | . . . . . . . . . Authchips . | . . . . . . . . . Time . | . . . . . . . . . Total Robot Build Rating . | . . . . . . . . . Part Schematics Acquired . | . . . . . . . . . Parts Built . | . . . . . . . . . Authchips . | . . . . . . . . . Time . | . . . . . . . . . Total Part Build Rating . | . . . . . . . . . Parts Repaired . | . . . . . . . . . Time . | . . . . . . . . . Parts Recycled . | . . . . . . . . . Recycled Matter . | . . . . . . . . . Retrieved Matter . | . . . . . . . . . Retrieved Components . | . . . . . . . . . Parts Scanalyzed . | . . . . . . . . . Part Schematics Acquired . | . . . . . . . . . Parts Damaged . | . . . . . . . . . Bothacking | -11 -10 -10 -9 -8 -7 -7 -7 -7 ------------ Run | Yrd Mat Min Mat Mat Fac Was Fac Sto Used RIF Installer . | . . . . . . . . . Robots Hacked . | . . . . . . . . . Non-combat . | . . . . . . . . . Combat . | . . . . . . . . . Robot Hacks Applied . | . . . . . . . . . Relay Couplers Released . | . . . . . . . . . Fabnet Peak Effective % . | . . . . . . . . . Robots Rewired . | . . . . . . . . . Allies Hacked . | . . . . . . . . . Hacks Repelled . | . . . . . . . . . Allies | -11 -10 -10 -9 -8 -7 -7 -7 -7 -------- Run | Yrd Mat Min Mat Mat Fac Was Fac Sto Total Allies 3 | . . . . . . 1 . 2 Largest Group 2 | . . . . . . 1 . 2 Highest-Rated Group 62 | . . . . . . 31 . 62 Highest-Rated Ally 31 | . . . . . . 31 . 31 Total Orders . | . . . . . . . . . Ally Attacks 15 | . . . . . . 5 . 10 Total Damage 208 | . . . . . . 85 . 123 Kills . | . . . . . . . . . Allies Corrupted . | . . . . . . . . . Allies Melted . | . . . . . . . . . Intel | -11 -10 -10 -9 -8 -7 -7 -7 -7 ------- Run | Yrd Mat Min Mat Mat Fac Was Fac Sto Robot Analysis Total . | . . . . . . . . . Derelict Logs Recovered 2 | . . 2 . . . . . . Drone Launches . | . . . . . . . . . Drone Recoveries . | . . . . . . . . . Exploration | -11 -10 -10 -9 -8 -7 -7 -7 -7 ------------- Run | Yrd Mat Min Mat Mat Fac Was Fac Sto Turns Passed 2165 | 90 120 316 534 146 639 170 30 120 Spaces Moved 1354 | 53 74 185 301 87 317 212 57 68 Core 393 | 22 . . . . 43 203 57 68 Treads 940 | 31 74 185 301 87 262 . . . Legs 21 | . . . . . 12 9 . . Wheels . | . . . . . . . . . Hover . | . . . . . . . . . Flight . | . . . . . . . . . Fastest Speed 50 | 50 160 160 160 160 90 50 50 50 Average Speed 146 | 143 160 160 160 160 185 68 50 166 Slowest Speed 350 | 200 160 160 160 160 350 350 50 250 Overloaded Moves . | . . . . . . . . . Propulsion Burnouts . | . . . . . . . . . Robots Hopped . | . . . . . . . . . Cave-ins Triggered . | . . . . . . . . . Exploration Rate (%) 28 | 3 23 52 42 11 13 99 2 11 Regions Visited 8 Branch Regions 2 Pre-discovered Areas . | . . . . . . . . . Known Exits Taken . | . . . . . . . . . Unknown Exits Taken 6 | 1 1 1 1 1 . . 1 . Scrap Searched . | . . . . . . . . . Spaces Dug . | . . . . . . . . . Terrain Destroyed 105 | . . . . . 71 34 . . Melee . | . . . . . . . . . Projectile . | . . . . . . . . . AOE 105 | . . . . . 71 34 . . Terrain Rammed . | . . . . . . . . . Walls Destroyed . | . . . . . . . . . Machines Disabled . | . . . . . . . . . Actions | -11 -10 -10 -9 -8 -7 -7 -7 -7 --------- Run | Yrd Mat Min Mat Mat Fac Was Fac Sto Total 1447 | 67 76 192 322 90 342 227 57 74 Wait . | . . . . . . . . . Move 1347 | 52 73 184 300 86 317 211 56 68 Hop . | . . . . . . . . . Pick Up 24 | 9 2 . 4 . 3 3 . 3 Fast Attach 2 | . . . . . . . . 2 Attach 23 | 6 1 . 2 2 6 5 . 1 Detach 4 | . . . . . 2 2 . . Swap . | . . . . . . . . . Drop . | . . . . . . . . . Fire 45 | . . 8 16 2 13 6 . . Melee . | . . . . . . . . . Ram 1 | . . . . . . . 1 . Kick . | . . . . . . . . . Crush 1 | . . . . . 1 . . . Escape Stasis . | . . . . . . . . . Rewire . | . . . . . . . . . Trap . | . . . . . . . . . Miscellaneous . | . . . . . . . . . Route ------- -11/Scrapyard -10/Materials -10/Mines -9/Materials (discovered 2 exits: [*Mat] / *Min) -8/Materials -7/Factory -7/Waste -7/Factory -7/Storage History --------- Turn | Location | Event 19 | -11/Scrapyard | Discovered new exit (range 16) 91 | -11/Scrapyard | Entered Materials 195 | -10/Materials | Discovered new exit (range 11) 211 | -10/Materials | Entered Mines 250 | -10/Mines | Met a Derelict bent on vengeance 315 | -10/Mines | Build established: Mutant 461 | -10/Mines | Learned 4 Materials zone layouts 495 | -10/Mines | Discovered new exit (range 8) 522 | -10/Mines | Learned 2 Materials zone layouts 527 | -10/Mines | Entered Materials 527 | -9/Materials | Evolved 2 slots: Weapon x2 528 | -9/Materials | Identified exit to Mines 917 | -9/Materials | Build established: Tank 1054 | -9/Materials | Discovered new exit (range 4) 1061 | -9/Materials | Entered another Materials area 1061 | -8/Materials | Evolved 2 slots: Weapon x2 1194 | -8/Materials | Discovered new exit (range 5) 1207 | -8/Materials | Entered Factory 1207 | -7/Factory | Evolved 2 slots: Utility x2 1444 | -7/Factory | Build established: Executioner 1679 | -7/Factory | Lost 3 parts (1p1n1w) 1846 | -7/Factory | Sucked down chute 1846 | -7/Factory | Entered Waste 1847 | -7/Waste | Met a frightened Derelict 1861 | -7/Waste | EMP discharged 1866 | -7/Waste | Spotted C-40 Crusher 1886 | -7/Waste | Crushed by Compactor (1 part destroyed, 2 dropped) 1889 | -7/Waste | Crushed by Compactor (1 part destroyed, 1 dropped) 1894 | -7/Waste | Spotted C-40 Crusher 1920 | -7/Waste | Lost 6 parts (1n5w) 1929 | -7/Waste | Crushed by Compactor (1 part destroyed, 2 dropped) 1937 | -7/Waste | Spotted C-40 Crusher 1938 | -7/Waste | Spotted C-40 Crusher 1939 | -7/Waste | Spotted C-40 Crusher 1956 | -7/Waste | Crushed by Compactor (1 part destroyed) 1961 | -7/Waste | EMP discharged 1961 | -7/Waste | System corruption reached 10% 1981 | -7/Waste | Spotted C-40 Crusher 1993 | -7/Waste | Found Corrupted Prototype Processor 1994 | -7/Waste | Identified Exp. Terrain Scan Processor 2012 | -7/Waste | Discovered new exit (range 10) 2016 | -7/Waste | Entered Factory 2037 | -7/Factory | Discovered new exit (range 16) 2046 | -7/Factory | Entered Storage 2053 | -7/Storage | Met a pair of Derelict thieves 2146 | -7/Storage | Core integrity fell below 50% 2156 | -7/Storage | Core integrity fell below 20% 2166 | -7/Storage | Destroyed by L-41 Fighter with Axe Last Messages --------------- 02139_ I-36 Angel distress signal jammed. 02140_ System corrupted: Matter fused (-5). 02140_ I-36 Angel distress signal jammed. 02147_ Imp. Core Shielding destroyed. 02147_ I-36 Angel distress signal jammed. [Achievement: Total Silence] 02153_ I-36 Angel distress signal jammed. 02156_ P-60 Hacker resets G-50 Soldier, system corruption cleaned. 02156_ I-36 Angel distress signal jammed. 02160_ System corrupted: Heat flow error (+264). 02160_ Hvy. Deuterium Engine severed. 02160_ I-36 Angel distress signal jammed. 02161_ Critical hit (Burn: +37). 02162_ I-36 Angel distress signal jammed. 02163_ Connecting with Recycling Unit... 02163_ Current location identified: Storage 02163_ I-36 Angel distress signal jammed. 02164_ Transmission Jammer severed. 02165_ Acquired Transmission Jammer. Map ----- +----------------------------------------------------+ | | | | | | | | | | | ?????????????????????????????? | | ?????????????????????????????? | | ?????????????????????????????? | | ?????????????????????????????? | | ?????????????????????????????? | | ????????????#####????????????? | | ????????????# #????????????? | | ????????????# #????????????? | | ????######??# #????????????? | | ????#* #### #????????????? | | ????# * #T## #????????????? | | ????# " + #????????????? | | ????# # #????????????? | | ????# * " # #????????????? | | ????#** # # #????????????? | | ????######### #????????????? | | ????????????# ###########??? | | ??####??????# # """T""" #??? | | ??# ! ????# # Yg #??? | | ??# ??# #! """"l#### | | ??# ! !*%= # # ""@"""# | | ?"/ ] = / g g """" Y"# | | ??# %*# # i""""g"""# | | ??# = ??# # pl #### | | ??# ????# # g #??? | | ??#% ??????# ###" "#####??? | | ??##????????# #?#"T"#??????? | | ????????????# #?#"""#??????? | | ????????????# #?#####??????? | | ????????????# #????????????? | | ????????????# #????????????? | | ????????????# #????????????? | | ????????????# #????????????? | | ????????????# T????????????? | | ????????????# "????????????? | | ????????????# #????????????? | | ????????????? ?????????????? | | ?????????????????????????????? | | ?????????????????????????????? | | ?????????????????????????????? | | ?????????????????????????????? | | ?????????????????????????????? | | ?????????????????????????????? | | ?????????????????????????????? | | ?????????????????????????????? | +----------------------------------------------------+ Best States ------------- Heat Dissipation 34 Energy Generation 18 Energy Capacity 310 Matter Stores 300 Matter Capacity 300 Sight Range 16 Terrain Scan Density 1010 ECM Strength 2 Jamming Range 12 Core Shielding 30 Evasion (%) 50 Recoil Reduction 2 Item Schematics ----------------- None Robot Schematics ------------------ None Fabricated ------------ Nothing Alien Tech Used ----------------- None Achievements -------------- Made in Tau Ceti IV System Compromised Total Silence Challenges ------------ None Game ------ Seed DrainedScatterCharger Manual? 0 Play Time 00:25:16 Cumulative 2.9 hours Start 2024.04.01 @ 15:43:31 End 2024.04.01 @ 16:12:47 Sessions 1 Manual Loads 0 Difficulty Rogue Special Mode None Game No. 9 Rogue 9 Adventurer 0 Explorer 0 Win Type - Total 0 Types 0/0/0/0/0/0/0/0/0 Lore% 5 Gallery% 6 Achievement% 6 Wizard Run 0 Options --------- Layout 1 ASCII 0 Keyboard 0 Movement Mouse Keybinds 0 Fullscreen 1 Font 24/Smallcaps Map View 50x35 Zoom Use 0% Tactical HUD 1 Map Filters NONE Filters NONE Steam 1 RUN: beba4ba5-2f8e-4bb6-bf25-0c9cffd5b164